fUST/lending_fUST_20240612
["ID","MTS","AMOUNT","RATE_DAILY","PERIOD"]
[329195916,1718170248398,-500.0,0.00016712,2]
[329195917,1718170248416,-500.0,0.00016712,2]
[329195919,1718170248438,-2212.11,0.00016712,2]
[329195920,1718170248454,-500.0,0.00016712,2]
[329195921,1718170248465,-941.67,0.00016712,2]
[329195922,1718170248476,-500.0,0.00016712,2]
[329195923,1718170248490,-500.0,0.00016712,2]
[329195924,1718170248502,-500.0,0.00016712,2]
[329195925,1718170248515,-500.0,0.00016712,2]
[329195926,1718170248525,-557.85,0.00016712,2]
[329195927,1718170248536,-432.0971897,0.00016712,2]
[329195928,1718170248555,-500.0,0.00016712,2]
[329195929,1718170248580,-501.08716717,0.00016712,2]
[329195930,1718170248592,-1370.13,0.00016712,2]
[329195931,1718170248602,-183.79379664,0.00016712,2]
[329195932,1718170248612,-500.0,0.00016712,2]
[329195933,1718170248633,-537.0375733,0.00016712,2]
[329195934,1718170248644,-5423.39,0.00016712,2]
[329195935,1718170248659,-500.0,0.00016712,2]
[329195936,1718170248679,-500.0,0.00016712,2]
[329195938,1718170248709,-500.0,0.00016712,2]
[329195939,1718170248719,-500.0,0.00016712,2]
[329195940,1718170248737,-500.0,0.00016712,2]
[329195941,1718170248756,-500.0,0.00016712,2]
[329195942,1718170248768,-1609.02,0.00016712,2]
[329195943,1718170248779,-500.0,0.00016712,2]
[329195944,1718170248791,-500.0,0.00016712,2]
[329195945,1718170248802,-500.0,0.00016712,2]
[329195946,1718170248816,-500.0,0.00016712,2]
[329195947,1718170248834,-500.0,0.00016712,2]
[329195948,1718170248854,-544.82398022,0.00016712,2]
[329195949,1718170248879,-4255.08,0.00016712,2]
[329195950,1718170248906,-500.0,0.00016712,2]
[329195951,1718170248923,-500.0,0.00016712,2]
[329195952,1718170248935,-500.0,0.00016712,2]
[329195953,1718170248959,-500.0,0.00016712,2]
[329195954,1718170248979,-764.49,0.00016712,2]
[329195955,1718170248990,-500.0,0.00016712,2]
[329195956,1718170249032,-542.49802062,0.00016712,2]
[329195957,1718170249056,-300.2,0.00016712,2]
[329195958,1718170249072,-500.0,0.00016712,2]
[329195959,1718170249085,-500.0,0.00016712,2]
[329195960,1718170249100,-500.0,0.00016712,2]
[329195961,1718170249111,-500.0,0.00016712,2]
[329195962,1718170249126,-500.0,0.00016712,2]
[329195963,1718170249160,-439.67644935,0.00016712,2]
[329195964,1718170249179,-500.0,0.00016712,2]
[329195965,1718170249214,-1395.08,0.00016712,2]
[329195966,1718170249233,-521.65340863,0.00016712,2]
[329195967,1718170249248,-500.0,0.00016712,2]
[329195968,1718170249266,-860.28,0.00016712,2]
[329195969,1718170249279,-673.94,0.00016712,2]
[329195970,1718170249292,-500.0,0.00016712,2]
[329195971,1718170249310,-500.0,0.00016712,2]
[329195972,1718170249328,-595.76,0.00016712,2]
[329195973,1718170249345,-510.50646292,0.00016712,2]
[329195974,1718170249361,-791.23798905,0.00016886,2]
[329195975,1718170249373,-500.0,0.00016985,2]
[329195976,1718170249387,-500.0,0.00016985,2]
[329195977,1718170249401,-500.0,0.00016985,2]
[329195978,1718170249413,-500.0,0.00016985,2]
[329195979,1718170249431,-500.0,0.00016985,2]
[329195981,1718170249485,-744.74,0.00016985,2]
[329195982,1718170249505,-744.74,0.00016985,2]
[329195983,1718170249515,-500.0,0.00016986,2]
[329195984,1718170249528,-500.0,0.00016986,2]
[329195985,1718170249539,-503.31503696,0.00016986,2]
[329195986,1718170249550,-500.0,0.00016986,2]
[329195987,1718170249561,-500.0,0.00016986,2]
[329195988,1718170249570,-500.0,0.00016986,2]
[329195989,1718170249581,-2230.04,0.00016986,2]
[329195990,1718170249591,-500.0,0.00016986,2]
[329195991,1718170249603,-252.97703757,0.00016986,2]
[329195992,1718170249616,-500.0,0.00016986,2]
[329195993,1718170249636,-316.42574093,0.00016986,2]
[329195994,1718170249663,-500.0,0.00016986,2]
[329195995,1718170249676,-500.0,0.00016986,2]
[329195996,1718170249689,-506.35328406,0.00016986,2]
[329195997,1718170249701,-500.0,0.00016986,2]
[329195998,1718170249715,-538.08,0.00016986,2]
[329195999,1718170249730,-848.32,0.00016986,2]
[329196000,1718170249746,-500.0,0.00016986,2]
[329196001,1718170249763,-500.0,0.00016986,2]
[329196002,1718170249794,-500.0,0.00016986,2]
[329196004,1718170249823,-500.0,0.00016986,2]
[329196005,1718170249837,-500.0,0.00016986,2]
[329196006,1718170249870,-404.57647126,0.00016986,2]
[329196007,1718170249912,-500.0,0.00016986,2]
[329196008,1718170249931,-500.0,0.00016986,2]
[329196009,1718170249952,-500.0,0.00016986,2]
[329196010,1718170249971,-1430.96,0.00016986,2]
[329196011,1718170250041,-500.0,0.00016986,2]
[329196012,1718170250068,-500.0,0.00016986,2]
[329196013,1718170250099,-501.02092364,0.00016986,2]
[329196014,1718170250130,-6774.53,0.00016986,2]
[329196015,1718170250151,-500.0,0.00016986,4]
[329196016,1718170250169,-500.0,0.00016986,2]
[329196017,1718170250188,-500.0,0.00016986,2]
[329196018,1718170250217,-504.51495789,0.00016986,2]
[329196019,1718170250232,-500.0,0.00016986,2]
[329196020,1718170250250,-500.0,0.00016986,2]
[329196021,1718170250269,-500.0,0.00016986,2]
[329196022,1718170250282,-2212.11,0.00016986,2]
[329196023,1718170250294,-500.0,0.00016986,2]
[329196024,1718170250306,-941.67,0.00016986,2]
[329196025,1718170250319,-500.0,0.00016986,2]
[329196026,1718170250330,-500.0,0.00016986,2]
[329196027,1718170250341,-500.0,0.00016986,2]
[329196028,1718170250352,-557.85,0.00016986,2]
[329196029,1718170250363,-324.57038224,0.00016986,2]
[329196030,1718170250374,-1370.13,0.00016986,2]
[329196031,1718170250386,-500.0,0.00016986,2]
[329196032,1718170250406,-5423.39,0.00016986,2]
[329196033,1718170250423,-500.0,0.00016986,2]
[329196034,1718170250452,-379.10334995,0.00016986,2]
[329196035,1718170250471,-635.867111,0.00016986,2]
[329196036,1718170250503,-500.0,0.00016986,2]
[329196037,1718170250515,-500.0,0.00016986,2]
[329196038,1718170250532,-500.0,0.00016986,2]
[329196039,1718170250554,-1609.02,0.00016986,2]
[329196040,1718170250574,-500.0,0.00016986,2]
[329196041,1718170250599,-500.0,0.00016986,2]
[329196042,1718170250619,-500.0,0.00016986,2]
[329196043,1718170250635,-500.0,0.00016986,2]
[329196044,1718170250659,-503.86776065,0.00016986,2]
[329196045,1718170250672,-4255.08,0.00016986,2]
[329196046,1718170250692,-509.30829293,0.00016986,2]
[329196047,1718170250714,-560.7719292,0.00016986,2]
[329196048,1718170250727,-500.0,0.00016986,2]
[329196049,1718170250742,-500.0,0.00016986,2]
[329196050,1718170250763,-764.49,0.00016986,2]
[329196051,1718170250793,-500.0,0.00016986,2]
[329196052,1718170250806,-300.2,0.00016986,2]
[329196053,1718170250818,-500.0,0.00016986,2]
[329196054,1718170250829,-509.95549602,0.00016986,2]
[329196055,1718170250843,-500.0,0.00016986,2]
[329196056,1718170250859,-500.0,0.00016986,2]
[329196057,1718170250877,-500.0,0.00016986,2]
[329196058,1718170250888,-500.0,0.00016986,2]
[329196059,1718170250909,-1395.08,0.00016986,2]
[329196060,1718170250926,-270.06174295,0.00016986,2]
[329196061,1718170250937,-860.28,0.00016986,2]
[329196062,1718170250952,-673.94,0.00016986,2]
[329196063,1718170250966,-500.0,0.00016986,2]
[329196064,1718170250985,-500.0,0.00016986,2]
[329196065,1718170250995,-595.76,0.00016986,2]
[329196066,1718170251008,-1000.0,0.00017,2]
[329196067,1718170251036,-500.0,0.00017259,2]
[329196068,1718170251053,-500.0,0.00017259,2]
[329196069,1718170251069,-500.0,0.00017259,2]
[329196070,1718170251087,-500.0,0.00017259,2]
[329196071,1718170251100,-744.74,0.00017259,2]
[329196072,1718170251111,-500.0,0.0001726,2]
[329196073,1718170251135,-500.0,0.0001726,2]
[329196074,1718170251151,-164.84201644,0.0001726,2]
[329196075,1718170251198,-500.0,0.0001726,2]
[329196076,1718170251211,-2230.04,0.0001726,2]
[329196077,1718170251233,-500.0,0.0001726,2]
[329196078,1718170251264,-500.0,0.0001726,2]
[329196079,1718170251282,-500.0,0.0001726,2]
[329196080,1718170251303,-500.0,0.0001726,2]
[329196081,1718170251325,-500.0,0.0001726,2]
[329196082,1718170251345,-538.08,0.0001726,2]
[329196083,1718170251369,-848.32,0.0001726,2]
[329196084,1718170251400,-500.0,0.0001726,2]
[329196085,1718170251417,-500.0,0.0001726,2]
[329196086,1718170251432,-500.0,0.0001726,2]
[329196087,1718170251453,-500.0,0.0001726,2]
[329196088,1718170251464,-504.1944284,0.0001726,2]
[329196089,1718170251478,-500.0,0.0001726,2]
[329196090,1718170251492,-511.15635574,0.0001726,2]
[329196091,1718170251504,-500.0,0.0001726,2]
[329196092,1718170251515,-1430.96,0.0001726,2]
[329196093,1718170251529,-500.0,0.0001726,2]
[329196094,1718170251556,-500.0,0.0001726,2]
[329196095,1718170251577,-6774.53,0.0001726,2]
[329196096,1718170251589,-500.0,0.0001726,4]
[329196097,1718170251600,-500.0,0.0001726,2]
[329196098,1718170251615,-500.0,0.0001726,2]
[329196099,1718170251631,-500.0,0.0001726,2]
[329196100,1718170251661,-500.0,0.0001726,2]
[329196101,1718170251698,-500.0,0.0001726,2]
[329196102,1718170251719,-2212.11,0.0001726,2]
[329196103,1718170251732,-535.12747243,0.0001726,2]
[329196104,1718170251743,-941.67,0.0001726,2]
[329196105,1718170251758,-500.0,0.0001726,2]
[329196106,1718170251769,-549.07847352,0.0001726,2]
[329196107,1718170251781,-500.0,0.0001726,2]
[329196108,1718170251803,-557.85,0.0001726,2]
[329196109,1718170251826,-1370.13,0.0001726,2]
[329196110,1718170251841,-500.0,0.0001726,2]
[329196111,1718170251855,-5423.39,0.0001726,2]
[329196112,1718170251878,-397.4158335,0.0001726,2]
[329196113,1718170251896,-500.0,0.0001726,2]
[329196114,1718170251918,-500.0,0.0001726,2]
[329196115,1718170251940,-500.0,0.0001726,2]
[329196116,1718170251954,-1609.02,0.0001726,2]
[329196117,1718170251973,-581.6496706,0.0001726,2]
[329196118,1718170251984,-516.53957628,0.0001726,2]
[329196119,1718170251997,-504.15185985,0.0001726,2]
[329196120,1718170252009,-4255.08,0.0001726,2]
[329196121,1718170252052,-500.0,0.0001726,2]
[329196122,1718170252072,-764.49,0.0001726,2]
[329196123,1718170252087,-460.21898114,0.0001726,2]
[329196124,1718170252099,-300.2,0.0001726,2]
[329196125,1718170252110,-500.0,0.0001726,2]
[329196126,1718170252121,-500.0,0.0001726,2]
[329196127,1718170252132,-500.0,0.0001726,2]
[329196128,1718170252143,-500.0,0.0001726,2]
[329196129,1718170252154,-1395.08,0.0001726,2]
[329196130,1718170252167,-860.28,0.0001726,2]
[329196131,1718170252178,-673.94,0.0001726,2]
[329196132,1718170252190,-500.0,0.0001726,2]
[329196133,1718170252200,-500.0,0.0001726,2]
[329196134,1718170252212,-595.76,0.0001726,2]
[329196135,1718170252232,-186.2339668,0.00017425,2]
[329196136,1718170252245,-791.23798905,0.00017434,2]
[329196137,1718170252259,-500.0,0.00017533,2]
[329196138,1718170252271,-500.0,0.00017533,2]
[329196139,1718170252282,-500.0,0.00017533,2]
[329196140,1718170252293,-744.74,0.00017533,2]
[329196141,1718170252304,-500.0,0.00017534,2]
[329196142,1718170252317,-500.0,0.00017534,2]
[329196143,1718170252340,-2230.04,0.00017534,2]
[329196144,1718170252384,-500.0,0.00017534,2]
[329196145,1718170252402,-500.0,0.00017534,2]
[329196146,1718170252414,-500.0,0.00017534,2]
[329196147,1718170252426,-500.0,0.00017534,2]
[329196148,1718170252438,-500.0,0.00017534,2]
[329196149,1718170252449,-538.08,0.00017534,2]
[329196150,1718170252460,-848.32,0.00017534,2]
[329196151,1718170252471,-619.86637943,0.00017534,2]
[329196152,1718170252482,-500.0,0.00017534,2]
[329196153,1718170252494,-509.93422011,0.00017534,2]
[329196154,1718170252508,-500.0,0.00017534,2]
[329196155,1718170252521,-500.0,0.00017534,2]
[329196156,1718170252538,-500.0,0.00017534,2]
[329196157,1718170252550,-1430.96,0.00017534,2]
[329196158,1718170252565,-500.0,0.00017534,2]
[329196159,1718170252587,-262.28007136,0.00017534,2]
[329196160,1718170252605,-6774.53,0.00017534,2]
[329196161,1718170252616,-500.0,0.00017534,4]
[329196162,1718170252628,-500.0,0.00017534,2]
[329196163,1718170252641,-500.0,0.00017534,2]
[329196164,1718170252654,-500.0,0.00017534,2]
[329196165,1718170252668,-318.1967511,0.00017534,2]
[329196166,1718170252679,-2212.11,0.00017534,2]
[329196167,1718170252692,-941.67,0.00017534,2]
[329196168,1718170252705,-500.0,0.00017534,2]
[329196169,1718170252718,-500.0,0.00017534,2]
[329196170,1718170252733,-557.85,0.00017534,2]
[329196171,1718170252749,-1370.13,0.00017534,2]
[329196172,1718170252770,-500.0,0.00017534,2]
[329196173,1718170252785,-5423.39,0.00017534,2]
[329196174,1718170252796,-500.0,0.00017534,2]
[329196175,1718170252808,-500.0,0.00017534,2]
[329196176,1718170252820,-1609.02,0.00017534,2]
[329196177,1718170252832,-4255.08,0.00017534,2]
[329196178,1718170252845,-500.0,0.00017534,2]
[329196179,1718170252856,-764.49,0.00017534,2]
[329196180,1718170252866,-300.2,0.00017534,2]
[329196181,1718170252878,-500.0,0.00017534,2]
[329196182,1718170252889,-500.0,0.00017534,2]
[329196183,1718170252901,-500.0,0.00017534,2]
[329196184,1718170252918,-500.0,0.00017534,2]
[329196185,1718170252930,-1395.08,0.00017534,2]
[329196186,1718170252942,-860.28,0.00017534,2]
[329196187,1718170252953,-673.94,0.00017534,2]
[329196188,1718170252964,-500.0,0.00017534,2]
[329196189,1718170252978,-500.0,0.00017534,2]
[329196190,1718170252990,-595.76,0.00017534,2]
[329196191,1718170253002,-378.687168,0.00017807,2]
[329196192,1718170253013,-744.74,0.00017807,2]
[329196193,1718170253050,-500.0,0.00017808,2]
[329196194,1718170253062,-2230.04,0.00017808,2]
[329196195,1718170253074,-500.0,0.00017808,2]
[329196196,1718170253087,-264.71039901,0.00017808,2]
[329196197,1718170253098,-500.0,0.00017808,2]
[329196198,1718170253111,-500.0,0.00017808,2]
[329196199,1718170253122,-500.0,0.00017808,2]
[329196200,1718170253133,-538.08,0.00017808,2]
[329196201,1718170253144,-848.32,0.00017808,2]
[329196202,1718170253161,-500.0,0.00017808,2]
[329196203,1718170253173,-500.0,0.00017808,2]
[329196204,1718170253184,-199.13831297,0.00017808,2]
[329196205,1718170253194,-1430.96,0.00017808,2]
[329196206,1718170253206,-500.0,0.00017808,2]
[329196207,1718170253219,-6774.53,0.00017808,2]
[329196208,1718170253231,-500.0,0.00017808,4]
[329196209,1718170253249,-500.0,0.00017808,2]
[329196210,1718170253264,-2212.11,0.00017808,2]
[329196211,1718170253284,-941.67,0.00017808,2]
[329196212,1718170253308,-500.0,0.00017808,2]
[329196213,1718170253332,-557.85,0.00017808,2]
[329196214,1718170253348,-1370.13,0.00017808,2]
[329196215,1718170253362,-500.0,0.00017808,2]
[329196216,1718170253386,-5423.39,0.00017808,2]
[329196217,1718170253405,-500.0,0.00017808,2]
[329196218,1718170253421,-500.0,0.00017808,2]
[329196219,1718170253436,-1609.02,0.00017808,2]
[329196220,1718170253454,-4255.08,0.00017808,2]
[329196221,1718170253466,-500.0,0.00017808,2]
[329196222,1718170253478,-764.49,0.00017808,2]
[329196223,1718170253494,-300.2,0.00017808,2]
[329196224,1718170253508,-500.0,0.00017808,2]
[329196225,1718170253523,-500.0,0.00017808,2]
[329196226,1718170253535,-500.0,0.00017808,2]
[329196227,1718170253554,-500.0,0.00017808,2]
[329196228,1718170253606,-1395.08,0.00017808,2]
[329196229,1718170253618,-860.28,0.00017808,2]
[329196230,1718170253642,-673.94,0.00017808,2]
[329196231,1718170253667,-500.0,0.00017808,2]
[329196232,1718170253681,-595.76,0.00017808,2]
[329196233,1718170253702,-500.0,0.00017897,2]
[329196234,1718170253714,-229.78721247,0.00017897,2]
[329196235,1718170253733,-10491.92816074,0.00017898,2]
[329196236,1718170253752,-791.23798905,0.00017982,2]
[329196237,1718170253763,-744.74,0.00017999,2]
[329196238,1718170253775,-632.99963654,0.00018,2]
[329196239,1718170253787,-155.0356582,0.00018,2]
[329196240,1718170253799,-220.43338047,0.00018,2]
[329196241,1718170253816,-876.82850055,0.00018,2]
[329196242,1718170253829,-2765.44251206,0.00018,2]
[329196243,1718170253845,-1355.61945113,0.00018,2]
[329196244,1718170253860,-1115.187625,0.00018,2]
[329196245,1718170253871,-744.74,0.00018081,2]
[329196246,1718170253885,-500.0,0.00018082,2]
[329196247,1718170253896,-2230.04,0.00018082,2]
[329196248,1718170253912,-507.93413676,0.00018082,2]
[329196249,1718170253928,-3000.0,0.00018082,2]
[329196250,1718170253943,-3000.0,0.00018082,2]
[329196251,1718170253954,-3000.0,0.00018082,2]
[329196252,1718170254130,-3000.0,0.00018082,2]
[329196253,1718170254142,-3000.0,0.00018082,2]
[329196254,1718170254152,-500.0,0.00018082,2]
[329196255,1718170254169,-500.0,0.00018082,2]
[329196256,1718170254181,-500.0,0.00018082,2]
[329196257,1718170254193,-538.08,0.00018082,2]
[329196258,1718170254205,-848.32,0.00018082,2]
[329196259,1718170254220,-500.0,0.00018082,2]
[329196260,1718170254236,-500.0,0.00018082,2]
[329196261,1718170254248,-1430.96,0.00018082,2]
[329196262,1718170254263,-500.0,0.00018082,2]
[329196263,1718170254277,-6774.53,0.00018082,2]
[329196264,1718170254289,-500.0,0.00018082,4]
[329196265,1718170254300,-500.0,0.00018082,2]
[329196266,1718170254310,-2212.11,0.00018082,2]
[329196267,1718170254321,-941.67,0.00018082,2]
[329196268,1718170254336,-500.0,0.00018082,2]
[329196269,1718170254349,-557.85,0.00018082,2]
[329196270,1718170254359,-1370.13,0.00018082,2]
[329196271,1718170254370,-500.0,0.00018082,2]
[329196272,1718170254389,-5423.39,0.00018082,2]
[329196273,1718170254427,-500.0,0.00018082,2]
[329196274,1718170254441,-500.0,0.00018082,2]
[329196275,1718170254451,-1609.02,0.00018082,2]
[329196276,1718170254462,-4255.08,0.00018082,2]
[329196277,1718170254472,-500.0,0.00018082,2]
[329196278,1718170254484,-764.49,0.00018082,2]
[329196279,1718170254512,-300.2,0.00018082,2]
[329196280,1718170254531,-500.0,0.00018082,2]
[329196281,1718170254542,-375.9453375,0.00018082,2]
[329196282,1718170254560,-500.0,0.00018082,2]
[329196283,1718170254587,-500.0,0.00018082,2]
[329196284,1718170254603,-1395.08,0.00018082,2]
[329196285,1718170254617,-860.28,0.00018082,2]
[329196286,1718170254629,-673.94,0.00018082,2]
[329196287,1718170254642,-500.0,0.00018082,2]
[329196288,1718170254654,-595.76,0.00018082,2]
[329196289,1718170254668,-294.5977057,0.00018082,2]
[329196290,1718170254679,-500.0,0.00018118,2]
[329196291,1718170254691,-744.74,0.00018355,2]
[329196292,1718170254703,-500.0,0.00018356,2]
[329196293,1718170254721,-2230.04,0.00018356,2]
[329196294,1718170254738,-500.0,0.00018356,2]
[329196295,1718170254751,-500.0,0.00018356,2]
[329196296,1718170254762,-500.0,0.00018356,2]
[329196297,1718170254773,-538.08,0.00018356,2]
[329196298,1718170254789,-848.32,0.00018356,2]
[329196299,1718170254800,-500.0,0.00018356,2]
[329196300,1718170254812,-500.0,0.00018356,2]
[329196301,1718170254823,-1430.96,0.00018356,2]
[329196302,1718170254835,-180.37399143,0.00018356,2]
[329196303,1718170254857,-6774.53,0.00018356,2]
[329196304,1718170254867,-500.0,0.00018356,4]
[329196305,1718170254878,-500.0,0.00018356,2]
[329196306,1718170254892,-2212.11,0.00018356,2]
[329196307,1718170254906,-941.67,0.00018356,2]
[329196308,1718170254920,-500.0,0.00018356,2]
[329196309,1718170254934,-557.85,0.00018356,2]
[329196310,1718170254946,-1370.13,0.00018356,2]
[329196311,1718170254957,-500.0,0.00018356,2]
[329196312,1718170254970,-5423.39,0.00018356,2]
[329196313,1718170254981,-500.0,0.00018356,2]
[329196314,1718170254991,-500.0,0.00018356,2]
[329196315,1718170255002,-1609.02,0.00018356,2]
[329196316,1718170255014,-4255.08,0.00018356,2]
[329196317,1718170255063,-500.0,0.00018356,2]
[329196318,1718170255075,-764.49,0.00018356,2]
[329196319,1718170255085,-300.2,0.00018356,2]
[329196320,1718170255096,-500.0,0.00018356,2]
[329196321,1718170255107,-500.0,0.00018356,2]
[329196322,1718170255117,-500.0,0.00018356,2]
[329196323,1718170255127,-1395.08,0.00018356,2]
[329196324,1718170255138,-860.28,0.00018356,2]
[329196325,1718170255148,-673.94,0.00018356,2]
[329196326,1718170255162,-500.0,0.00018356,2]
[329196327,1718170255174,-595.76,0.00018356,2]
[329196328,1718170255184,-153.0,0.00018384,2]
[329196329,1718170255198,-153.0,0.00018384,2]
[329196330,1718170255211,-153.0,0.00018384,2]
[329196331,1718170255232,-153.0,0.00018384,2]
[329196332,1718170255247,-153.0,0.00018438,2]
[329196333,1718170255263,-324.969978,0.00018438,2]
[329196334,1718170255275,-205.3823407,0.00018438,2]
[329196335,1718170255287,-606.91207968,0.000185,2]
[329196336,1718170255300,-1000.0,0.000185,2]
[329196337,1718170255312,-791.23798905,0.0001853,2]
[329196338,1718170255341,-166.666666,0.00018575,2]
[329196339,1718170255358,-500.0,0.00018629,2]
[329196340,1718170255368,-744.74,0.00018629,2]
[329196341,1718170255379,-500.0,0.0001863,2]
[329196342,1718170255389,-2230.04,0.0001863,2]
[329196343,1718170255400,-500.0,0.0001863,2]
[329196344,1718170255416,-500.0,0.0001863,2]
[329196345,1718170255426,-267.12796904,0.0001863,2]
[329196346,1718170255436,-538.08,0.0001863,2]
[329196347,1718170255446,-848.32,0.0001863,2]
[329196348,1718170255461,-500.0,0.0001863,2]
[329196349,1718170255474,-500.0,0.0001863,2]
[329196350,1718170255486,-1430.96,0.0001863,2]
[329196351,1718170255498,-6774.53,0.0001863,2]
[329196352,1718170255513,-500.0,0.0001863,4]
[329196353,1718170255526,-500.0,0.0001863,2]
[329196354,1718170255537,-2212.11,0.0001863,2]
[329196355,1718170255548,-941.67,0.0001863,2]
[329196356,1718170255571,-500.0,0.0001863,2]
[329196357,1718170255582,-557.85,0.0001863,2]
[329196358,1718170255594,-1370.13,0.0001863,2]
[329196359,1718170255604,-500.0,0.0001863,2]
[329196360,1718170255615,-5423.39,0.0001863,2]
[329196361,1718170255625,-500.0,0.0001863,2]
[329196362,1718170255636,-500.0,0.0001863,2]
[329196363,1718170255650,-1609.02,0.0001863,2]
[329196364,1718170255666,-4255.08,0.0001863,2]
[329196365,1718170255677,-500.0,0.0001863,2]
[329196366,1718170255687,-764.49,0.0001863,2]
[329196367,1718170255698,-300.2,0.0001863,2]
[329196368,1718170255709,-500.0,0.0001863,2]
[329196369,1718170255724,-172.52007797,0.0001863,2]
[329196370,1718170255737,-500.0,0.0001863,2]
[329196371,1718170255747,-1395.08,0.0001863,2]
[329196372,1718170255760,-860.28,0.0001863,2]
[329196373,1718170255772,-673.94,0.0001863,2]
[329196374,1718170255784,-500.0,0.0001863,2]
[329196375,1718170255795,-595.76,0.0001863,2]
[329196376,1718170255807,-250.0,0.0001863,2]
[329196377,1718170255818,-5281.92082876,0.00018633,2]
[329196378,1718170255829,-744.74,0.00018803,2]
[329196379,1718170255840,-744.74,0.00018803,2]
[329196380,1718170255851,-504.828,0.00018856,2]
[329196381,1718170255861,-7710.66083061,0.000189,2]
[329196382,1718170255872,-500.0,0.00018903,2]
[329196383,1718170255883,-744.74,0.00018903,2]
[329196384,1718170255894,-744.74,0.00018903,2]
[329196385,1718170255905,-744.74,0.00018903,2]
[329196386,1718170255918,-744.74,0.00018903,2]
[329196387,1718170255929,-744.77065221,0.00018903,2]
[329196388,1718170255940,-19310.37944484,0.00018904,2]
[329196389,1718170255951,-500.0,0.00018904,2]
[329196390,1718170255962,-2230.04,0.00018904,2]
[329196391,1718170255991,-500.0,0.00018904,2]
[329196392,1718170256005,-500.0,0.00018904,2]
[329196393,1718170256016,-538.08,0.00018904,2]
[329196394,1718170256058,-848.32,0.00018904,2]
[329196395,1718170256070,-500.0,0.00018904,2]
[329196396,1718170256087,-500.0,0.00018904,2]
[329196397,1718170256110,-1430.96,0.00018904,2]
[329196398,1718170256126,-6774.53,0.00018904,2]
[329196399,1718170256140,-500.0,0.00018904,4]
[329196400,1718170256152,-515.65962449,0.00018904,2]
[329196401,1718170256177,-2212.11,0.00018904,2]
[329196402,1718170256208,-941.67,0.00018904,2]
[329196403,1718170256223,-500.0,0.00018904,2]
[329196404,1718170256240,-557.85,0.00018904,2]
[329196405,1718170256252,-1370.13,0.00018904,2]
[329196406,1718170256263,-500.0,0.00018904,2]
[329196407,1718170256274,-5423.39,0.00018904,2]
[329196408,1718170256288,-500.0,0.00018904,2]
[329196409,1718170256299,-500.0,0.00018904,2]
[329196410,1718170256309,-1609.02,0.00018904,2]
[329196411,1718170256321,-4255.08,0.00018904,2]
[329196412,1718170256340,-500.0,0.00018904,2]
[329196413,1718170256365,-764.49,0.00018904,2]
[329196414,1718170256379,-300.2,0.00018904,2]
[329196415,1718170256401,-500.0,0.00018904,2]
[329196416,1718170256429,-500.0,0.00018904,2]
[329196417,1718170256447,-1395.08,0.00018904,2]
[329196418,1718170256468,-860.28,0.00018904,2]
[329196419,1718170256504,-673.94,0.00018904,2]